Cogmind - Beta 14 @@@ ROGUE MODE // 2025.01.18 @ 14:58:34 Player: Window_Licker Result: Destroyed by PS-F7U(R) with Subdweller Machine Gun Performance ------------- Evolutions (0) 0 Regions Visited (3) 600 Robots Destroyed (5) 25 Value Destroyed (111) 111 Prototype IDs (0) 0 Alien Tech Used (0) 0 Bonus (0) 0 TOTAL SCORE: 736 Bonus ------- None Cogmind --------- Core Integrity 0/250 Matter 300/300 Energy 100/100 System Corruption 0% Temperature Cool (0) Movement Walking (120) Location -10/Subcaves Parts ------- > --- POWER (1) -------- (None) > --- PROPULSION (2) --- Aluminum Leg > --- UTILITY (2) ------ (None) > --- WEAPON (2) ------- (None) > --- INVENTORY (5) ---- Medium Laser Light Assault Rifle Datajack Peak State ------------ > --- POWER ------------ Ion Engine > --- PROPULSION ------- Aluminum Leg > --- UTILITY ---------- Scrap Shield > --- WEAPON ----------- Battle Rifle Mining Laser > --- INVENTORY -------- Medium Laser Light Assault Rifle Datajack [Rating: 9] Favorites ----------- Power Ion Engine Engine Ion Engine Propulsion Aluminum Leg Treads Light Treads Leg Aluminum Leg Wheel Compact Wheel Flight Unit Flight Unit Utility Small Storage Unit Storage Small Storage Unit Processor Targeting Computer Protection Scrap Shield Weapon Light Assault Rifle Energy Gun EM Pulse Gun Ballistic Gun Light Assault Rifle Special Weapon Mining Laser Build | -11 -10 -10 -10 ------- Run | Yrd Mat Min Sub Slots Evolved . | . . . . Power . | . . . . Propulsion . | . . . . Utility . | . . . . Weapon . | . . . . Parts Attached 27 | 7 8 8 4 Power 2 | 1 . 1 . Engine 2 | 1 . 1 . Core . | . . . . Reactor . | . . . . Propulsion 11 | 4 3 2 2 Treads 4 | 2 2 . . Leg 3 | . . 2 1 Wheel 2 | 2 . . . Hover . | . . . . Flight 2 | . 1 . 1 Utility 5 | . 4 . 1 Device . | . . . . Storage 3 | . 3 . . Processor 1 | . 1 . . Hackware . | . . . . Protection 1 | . . . 1 Artifact . | . . . . Weapon 9 | 2 1 5 1 Energy Gun 4 | 1 1 2 . Energy Cannon . | . . . . Ballistic Gun 4 | 1 . 2 1 Ballistic Cannon . | . . . . Launcher . | . . . . Special Weapon 1 | . . 1 . Impact Weapon . | . . . . Slashing Weapon . | . . . . Piercing Weapon . | . . . . Special Melee Weapon . | . . . . Unidentified Prototypes . | . . . . Parts Lost 5 | . . . 5 Power 1 | . . . 1 Propulsion 1 | . . . 1 Utility 1 | . . . 1 Weapon 2 | . . . 2 Highest Loss Streak 4 | . . . 4 To Critical Strikes . | . . . . Average Slot Usage (%) 94 | . 88 98 91 Engine 14 | . 14 14 14 Treads 8 | . 25 4 . Leg 17 | . . 23 24 Storage 13 | . 13 14 10 Processor 11 | . 6 14 10 Energy Gun 5 | . 12 5 . Ballistic Gun 16 | . 14 19 13 Special Weapon 4 | . . 2 13 Peak Build Rating 9 | 5 7 7 9 Average Rating 6 | 4 6 6 7 On Entrance 4 | . 5 6 7 Naked Turns . | . . . . Heaviest Build 26 | 8 13 13 26 Greatest Support 40 | 40 40 40 20 Greatest Overweight (x) 3 | . 3 . 2 Average Overweight (x) . | . . . . Largest Inventory Capacity 25 | 5 25 8 8 Average Capacity 7 | 5 8 8 7 Most Carried 8 | 5 6 7 8 Average Carried 4 | 2 2 3 6 Final Capacity 8 | 5 8 8 5 Final Carried 5 | 3 5 5 3 Class Distribution -------------------- 80% | Mutant 19% | Scavenger-Mutant Dominant Class ---------------- Mutant | -10/Materials Mutant | -10/Mines Mutant | -10/Subcaves Resources | -11 -10 -10 -10 ----------- Run | Yrd Mat Min Sub Matter Collected 467 | 204 . 208 55 Remotely . | . . . . Salvage Created 145 | . . 145 . Parts 7 | . . 7 . Haulers Intercepted . | . . . . Recyclers Shooed . | . . . . Parts Field Recycled . | . . . . Retrieved Matter . | . . . . Parts Self-Destructed 3 | . . . 3 Prevented . | . . . . Kills | -11 -10 -10 -10 ------- Run | Yrd Mat Min Sub Combat Hostiles Destroyed 5 | . . 5 . Guns 4 | . . 4 . Classes Destroyed 2 | . . 2 . Swarmer 3 | . . 3 . Grunt 2 | . . 2 . Best Kill Streak 3 | . . 3 . Combat Bots Only 3 | . . 3 . Max Kills in Single Turn 1 | . . 1 . Gunslinging . | . . . . Exploded . | . . . . Melee . | . . . . Uniques/NPCs Destroyed . | . . . . Combat | -11 -10 -10 -10 -------- Run | Yrd Mat Min Sub Hostile Shots Fired 99 | . 2 59 38 Missed 22 | . . 15 7 Damage Taken 1157 | . 29 459 669 Core 270 | . . 48 222 Absorbed by Shields . | . . . . Core Remaining (%) 100 | 100 . . . Volleys Fired 51 | . . 33 18 Largest 2 | . . 2 1 Hottest 100 | . . 100 100 Shots Fired 74 | . . 56 18 Gun 57 | . . 49 8 Cannon . | . . . . Launcher . | . . . . Special 17 | . . 7 10 Kinetic 34 | . . 26 8 Thermal 29 | . . 19 10 Explosive . | . . . . Electromagnetic 11 | . . 11 . Robot Hit Streak 11 | . . 6 11 Robot Miss Streak 5 | . . 5 3 Penetration Max . | . . . . Secondary Targets . | . . . . Shots Hit Robots 41 | . . 29 12 Core Hits 11 | . . 8 3 Critical Kills . | . . . . Critical Parts Destroyed 1 | . . 1 . Critical Strikes 1 | . . 1 . Destroy 1 | . . 1 . Melee Attacks . | . . . . Impact . | . . . . Slashing . | . . . . Piercing . | . . . . Sneak Attacks . | . . . . Combat Hostiles . | . . . . Follow-up Attacks . | . . . . Damage Inflicted 517 | . . 306 211 Guns 390 | . . 299 91 Cannons . | . . . . Explosions . | . . . . Melee . | . . . . Ramming 7 | . . 7 . Kinetic 221 | . . 130 91 Thermal 170 | . . 50 120 Explosive . | . . . . Electromagnetic 119 | . . 119 . Impact . | . . . . Slashing . | . . . . Piercing . | . . . . Highest Corruption . | . . . . Average Corruption . | . . . . Corruption Purged . | . . . . Corruption Blocked . | . . . . Overload Shots . | . . . . Overflow Damage . | . . . . Projectiles . | . . . . Explosions . | . . . . Melee . | . . . . Knockbacks . | . . . . Impact . | . . . . Kinetic . | . . . . Secondary . | . . . . Self-Inflicted Damage . | . . . . Shots . | . . . . Rammed 7 | . . 7 . Targets Rammed 9 | . . 7 2 Kicked 2 | . . . 2 Crushed . | . . . . Highest Temperature 160 | . . 160 . Average Temperature 45 | . . 45 . Received Heat Transfer 258 | . 18 162 78 Siege Activations . | . . . . Robots Corrupted 1 | . . 1 . Combat Hostiles 1 | . . 1 . Parts Fried . | . . . . Impact Corruptions . | . . . . Robots Melted . | . . . . Combat Hostiles . | . . . . Parts Melted . | . . . . Heat Transferred 398 | . . 148 250 Parts Sabotaged . | . . . . Parts Stolen . | . . . . Parts Stripped . | . . . . Power Chain Reactions . | . . . . Alert | -11 -10 -10 -10 ------- Run | Yrd Mat Min Sub Peak Influence 123 | . 8 123 . Initial 3 | . . 3 . Average 37 | . 2 59 . Maximum Alert Level . | . . . . Low Security (%) 100 | 100 100 100 . Level 1 . | . . . . Level 2 . | . . . . Level 3 . | . . . . Level 4 . | . . . . Level 5 . | . . . . High Security . | . . . . Max Security . | . . . . Squads Dispatched 1 | . 1 . . Investigation 1 | . 1 . . Extermination . | . . . . Reinforcement . | . . . . Assault . | . . . . Garrison . | . . . . Intercept . | . . . . Searches Triggered . | . . . . Construction Impeded . | . . . . Haulers Reinforced . | . . . . Active Scanning Responses . | . . . . Cargo Convoy Interrupts . | . . . . Stealth | -11 -10 -10 -10 --------- Run | Yrd Mat Min Sub Distress Signals . | . . . . Communications Jammed . | . . . . Distress Signals . | . . . . Times Spotted 19 | . 2 5 12 Peak Tracking Total 9 | . 2 3 9 Tactical Retreats . | . . . . Traps | -11 -10 -10 -10 ------- Run | Yrd Mat Min Sub Traps Triggered 3 | . 3 . . Indirectly . | . . . . Trap Hack Attempts . | . . . . Triggered . | . . . . Disarmed . | . . . . Reprogrammed . | . . . . Reused . | . . . . Traps Extracted . | . . . . Installed . | . . . . Triggered . | . . . . Machines | -11 -10 -10 -10 ---------- Run | Yrd Mat Min Sub Machines Disabled . | . . . . Max in Single Turn . | . . . . Machines Repaired . | . . . . Machines Dismantled . | . . . . Machines Sabotaged . | . . . . Overloaded Fab Kills . | . . . . Hacking | -11 -10 -10 -10 --------- Run | Yrd Mat Min Sub Machines Accessed 3 | . 3 . . Terminals 3 | . 3 . . Fabricators . | . . . . Repair Stations . | . . . . Recycling Units . | . . . . Scanalyzers . | . . . . Garrison Access . | . . . . Total Hacks 9 | . 9 . . Successful 7 | . 7 . . Failed 2 | . 2 . . Catastrophic . | . . . . Database Lockouts . | . . . . Manual . | . . . . Terminals 9 | . 9 . . Fabricators . | . . . . Repair Stations . | . . . . Recycling Units . | . . . . Scanalyzers . | . . . . Garrison Access . | . . . . Terminal Hacks 7 | . 7 . . Record 6 | . 6 . . Locate Traps 1 | . 1 . . Fabricator Hacks . | . . . . Repair Station Hacks . | . . . . Recycling Unit Hacks . | . . . . Scanalyzer . | . . . . Garrison Access Hacks . | . . . . Unauthorized Hacks . | . . . . Terminals . | . . . . Fabricators . | . . . . Repair Stations . | . . . . Recycling Units . | . . . . Scanalyzers . | . . . . Garrison Access . | . . . . Data Cores Recovered . | . . . . Used . | . . . . Hacking Detections 3 | . 3 . . Full Trace Events . | . . . . Feedback Events . | . . . . Feedback Blocked . | . . . . Robot Schematics Acquired . | . . . . Robots Built . | . . . . Authchips . | . . . . Time . | . . . . Total Robot Build Rating . | . . . . Part Schematics Acquired . | . . . . Parts Built . | . . . . Authchips . | . . . . Time . | . . . . Total Part Build Rating . | . . . . Parts Repaired . | . . . . Time . | . . . . Parts Recycled . | . . . . Recycled Matter . | . . . . Retrieved Matter . | . . . . Retrieved Components . | . . . . Parts Scanalyzed . | . . . . Part Schematics Acquired . | . . . . Parts Damaged . | . . . . Bothacking | -11 -10 -10 -10 ------------ Run | Yrd Mat Min Sub Used RIF Installer . | . . . . Robots Hacked . | . . . . Non-combat . | . . . . Combat . | . . . . Robot Hacks Applied . | . . . . Relay Couplers Released . | . . . . Fabnet Peak Effective % . | . . . . Robots Rewired . | . . . . Allies Hacked . | . . . . Hacks Repelled . | . . . . Allies | -11 -10 -10 -10 -------- Run | Yrd Mat Min Sub Total Allies 1 | . . 1 . Largest Group 1 | . . 1 1 Highest-Rated Group 31 | . . 31 31 Highest-Rated Ally 31 | . . 31 31 Total Orders . | . . . . Ally Attacks . | . . . . Total Damage . | . . . . Kills . | . . . . Allies Corrupted . | . . . . Allies Melted . | . . . . Intel | -11 -10 -10 -10 ------- Run | Yrd Mat Min Sub Robot Analysis Total . | . . . . Derelict Logs Recovered 1 | . . 1 . Drone Launches . | . . . . Drone Recoveries . | . . . . Exploration | -11 -10 -10 -10 ------------- Run | Yrd Mat Min Sub Turns Passed 1146 | 60 276 542 268 Spaces Moved 676 | 39 154 325 158 Core 1 | 1 . . . Treads 181 | 14 146 21 . Legs 462 | . . 304 158 Wheels 24 | 24 . . . Hover . | . . . . Flight 8 | . 8 . . Fastest Speed 50 | 50 160 120 120 Average Speed 132 | 114 165 122 124 Slowest Speed 300 | 160 300 160 260 Overloaded Moves . | . . . . Propulsion Burnouts . | . . . . Robots Hopped . | . . . . Cave-ins Triggered . | . . . . Exploration Rate (%) 28 | 4 34 65 10 Regions Visited 3 Branch Regions 2 Pre-discovered Areas . | . . . . Known Exits Taken . | . . . . Unknown Exits Taken 3 | 1 1 1 . Scrap Searched 4 | . . 1 3 Spaces Dug 3 | . . 3 . Terrain Destroyed 3 | . . 3 . Melee . | . . . . Projectile 3 | . . 3 . AOE . | . . . . Terrain Rammed . | . . . . Walls Destroyed . | . . . . Machines Disabled . | . . . . Actions | -11 -10 -10 -10 --------- Run | Yrd Mat Min Sub Total 823 | 52 176 402 193 Wait 15 | . . 15 . Move 673 | 38 153 324 158 Hop . | . . . . Pick Up 21 | 5 8 5 3 Fast Attach 9 | 5 2 2 . Attach 8 | . 3 3 2 Detach 7 | . 2 4 1 Swap 10 | 2 3 3 2 Drop 16 | 2 5 6 3 Fire 51 | . . 33 18 Melee . | . . . . Ram . | . . . . Kick 2 | . . . 2 Crush 7 | . . 7 . Escape Stasis . | . . . . Rewire 4 | . . . 4 Trap . | . . . . Miscellaneous . | . . . . Route ------- -11/Scrapyard -10/Materials -10/Mines (discovered 3 exits: [*Mat x2] / [*Sub]) -10/Subcaves History --------- Turn | Location | Event 10 | -11/Scrapyard | Discovered new exit (range 15) 61 | -11/Scrapyard | Entered Materials 281 | -10/Materials | Discovered new exit (range 9) 307 | -10/Materials | Build established: Mutant 337 | -10/Materials | Entered Mines 450 | -10/Mines | Learned Materials non-interactive machine intel 656 | -10/Mines | Discovered new exit (range 12) 784 | -10/Mines | Discovered new exit (range 10) 791 | -10/Mines | Received a Mining Laser from a helpful Derelict 874 | -10/Mines | Discovered new exit (range 3) 879 | -10/Mines | Entered Subcaves 879 | -10/Subcaves | Accompanied by 1 ally 1107 | -10/Subcaves | A Subdweller sparked back to life 1107 | -10/Subcaves | A Subdweller sparked back to life 1107 | -10/Subcaves | A Subdweller sparked back to life 1130 | -10/Subcaves | Core integrity fell below 50% 1137 | -10/Subcaves | Ambushed by swarm of Subdwellers 1146 | -10/Subcaves | Core integrity fell below 20% 1147 | -10/Subcaves | Destroyed by PS-F7U(R) with Subdweller Machine Gun Last Messages --------------- 01107_ 3F-K80(R) creaks and sparks as it begins to move. 01107_ VW-HAS(R) creaks and sparks as it begins to move. 01107_ JP-YBA(R) creaks and sparks as it begins to move. 01109_ HV Slug penetrates 3F-K80(R). 01109_ 3F-K80(R) destroyed. 01112_ VC-FV6(h) suffers critical hit (Destroy). 01112_ VC-FV6(h) destroyed. 01118_ JP-YBA(R) affixes Scrap Shield Fragment to Scrap Shield. 01133_ Scrap Shield destroyed. 01137_ Battle Rifle destroyed. 01137_ Mining Laser destroyed. 01140_ Kicked JP-YBA(R). 01141_ Ion Engine destroyed. 01142_ Kicked JP-YBA(R). 01143_ JP-YBA(R) destroyed. 01144_ Acquired 32 matter. Map ----- +----------------------------------------------------+ | | | | | | | | | | | | | ?????????????????????????????????????????????????? | | ?????????????????????????????????????????????????? | | ?????????????????????????????????????????????????? | | ?????????????????????????????????????????????????? | | ?????????????????????????????????????????????????? | | ?????????????????????????????????????????????????? | | ?????????????????????????????????????????????????? | | ?????????????????????????????????????????????????? | | ?????????????????????????????????????????????????? | | ?????????????????????????????????????????????????? | | ?????????????????????????????????????????????????? | | ?????????????????????????????????????????????????? | | ?????????????????????????????????????????????????? | | ?????????????????????????????????????????????????? | | ???????????????????????????????????###???????????? | | ??????????????????????????########## ############# | | ?????????????????????????##"## ## # # # | | ??????????????????????####"""=!* | | ?????????????????#"" R#R;# !!%% | | ?????????????????# "R RR @&%!= R= # # ##### | | ?????????????????#""""R %#% !< ########???? | | ?????????????????#" R####; %!<#######??????????? | | ????????????????#" "????# ## % #????????????????? | | ??????????????? " ??????##?######????????????????? | | ???????????????"?????????????????????????????????? | | ?????????????????????????????????????????????????? | | ?????????????????????????????????????????????????? | | ?????????????????????????????????????????????????? | | ?????????????????????????????????????????????????? | | ?????????????????????????????????????????????????? | | ?????????????????????????????????????????????????? | | ?????????????????????????????????????????????????? | | ?????????????????????????????????????????????????? | | ?????????????????????????????????????????????????? | | ?????????????????????????????????????????????????? | | ?????????????????????????????????????????????????? | | ?????????????????????????????????????????????????? | | ?????????????????????????????????????????????????? | | ?????????????????????????????????????????????????? | | ?????????????????????????????????????????????????? | | ?????????????????????????????????????????????????? | | ?????????????????????????????????????????????????? | | ?????????????????????????????????????????????????? | | ?????????????????????????????????????????????????? | +----------------------------------------------------+ Best States ------------- Heat Dissipation 25 Energy Generation 10 Energy Capacity 250 Matter Stores 300 Matter Capacity 300 Sight Range 16 Terrain Scan Density 10 Armor Coverage 800 Evasion (%) 55 Targeting Accuracy 5 Recoil Reduction 2 Item Schematics ----------------- None Robot Schematics ------------------ None Fabricated ------------ Nothing Alien Tech Used ----------------- None Achievements -------------- None Challenges ------------ None Game ------ Seed PotentialWeaponPendant Manual? 0 Play Time 00:22:26 Cumulative 14.7 hours Start 2025.01.14 @ 21:24:01 End 2025.01.18 @ 14:58:34 Sessions 3 Manual Loads 0 Difficulty Rogue Special Mode None Game No. 19 Rogue 19 Adventurer 0 Explorer 0 Win Type - Total 0 Types 0/0/0/0/0/0/0/0/0 Lore% 3 Gallery% 12 Achievement% 11 Wizard Run 0 Options --------- Layout 1 ASCII 0 Keyboard 1 Movement Numpad Keybinds 0 Fullscreen 2 Font 32/SmallcapsGlow Map View 50x35 Zoom Use 0% Tactical HUD 1 Map Filters NONE Filters NONE Steam 1 RUN: 5e2a543c-6013-48bc-8317-2b2180b28138